bitfinex-derivatives/quotes_ETHF0:USTF0_20250614
["timestamp","ask_amount","ask_price","bid_price","bid_amount"]
[1749895867461,0.79154,2525.7,2525.6,25.3329499]
[1749895869462,0.79154,2525.7,2525.6,26.1245299]
[1749895869964,0.79154,2525.8,2525.7,0.79152]
[1749895870358,0.79155,2525.7,2525.6,27.4291999]
[1749895870664,0.79155,2525.7,2525.6,26.1244999]
[1749895871256,0.79154,2525.8,2525.7,0.79152]
[1749895871450,3.99926,2526.0,2525.9,0.79148]
[1749895871662,3.99926,2526.0,2525.9,26.06248]
[1749895871863,3.99926,2526.0,2525.9,25.271]
[1749895872363,0.79146,2526.0,2525.9,26.06248]
[1749895872660,0.0059499,2526.1,2526.0,0.79145]
[1749895872854,0.0059499,2526.1,2526.0,1.45225]
[1749895874062,0.7973699,2526.1,2526.0,1.45225]
[1749895874362,0.7973699,2526.1,2526.0,0.6608]
[1749895874565,0.0059499,2526.1,2526.0,1.45225]
[1749895875357,0.7973699,2526.1,2526.0,1.45225]
[1749895876267,0.7973699,2526.1,2526.0,0.6608]
[1749895876660,0.7973699,2526.1,2526.0,25.8998]
[1749895876858,0.7973699,2526.1,2526.0,25.239]
[1749895877253,0.79145,2526.0,2525.9,3.2078]
[1749895877460,0.79145,2526.0,2525.9,32.184]
[1749895877963,0.79151,2525.8,2525.7,1.97378781]
[1749895878166,0.79151,2525.8,2525.7,34.16078781]
[1749895879262,0.7973899,2526.1,2526.0,0.79145]
[1749895879463,0.0059499,2526.1,2526.0,29.21925]
[1749895879653,0.7973699,2526.1,2526.0,29.21925]
[1749895879855,0.7973699,2526.1,2526.0,29.0801]
[1749895880360,0.7973699,2526.1,2526.0,3.8601]
[1749895880562,0.7973699,2526.1,2526.0,32.8263]
[1749895881164,0.7973699,2526.1,2526.0,33.61775]
[1749895881358,0.7973699,2526.1,2526.0,32.8263]
[1749895881964,0.7973699,2526.1,2526.0,33.61775]
[1749895882270,0.7973699,2526.1,2526.0,32.8263]
[1749895883568,0.7973699,2526.1,2526.0,34.1118]
[1749895884074,0.7973699,2526.1,2526.0,34.90325]
[1749895887171,0.0059499,2526.1,2526.0,36.08471599]
[1749895887376,0.0059499,2526.1,2526.0,39.67075072]
[1749895887971,0.0059499,2526.1,2526.0,38.11105]
[1749895888173,0.79134,2526.5,2526.4,0.79129]
[1749895888375,0.79134,2526.5,2526.4,36.10009]
[1749895888868,0.79134,2526.5,2526.4,37.35859]
[1749895889067,0.79134,2526.5,2526.4,38.54030817]
[1749895891177,0.79134,2526.5,2526.4,37.35859]
[1749895891664,0.79134,2526.5,2526.4,38.54030817]
[1749895892068,0.79128,2526.6,2526.5,0.79126]
[1749895892268,0.79128,2526.6,2526.5,27.16836]
[1749895892469,0.79128,2526.6,2526.5,26.3771]
[1749895892872,0.79129,2526.5,2526.4,4.38951817]
[1749895893071,0.79129,2526.5,2526.4,35.0988]
[1749895893266,0.79129,2526.5,2526.4,10.0008]
[1749895893492,0.79129,2526.5,2526.4,35.0788]
[1749895894883,0.79129,2526.5,2526.4,35.0708]
[1749895895385,0.79129,2526.5,2526.4,35.86213]
[1749895896184,0.79129,2526.5,2526.4,35.0708]
[1749895896481,0.79129,2526.5,2526.4,35.86213]
[1749895896785,0.79129,2526.5,2526.4,35.0708]
[1749895897784,0.79129,2526.5,2526.4,35.0478]
[1749895898986,0.79129,2526.5,2526.4,3.2078]
[1749895899191,0.79129,2526.5,2526.4,25.037]
[1749895899695,1.44289,2526.5,2526.4,25.037]
[1749895899895,0.79136,2526.3,2526.2,25.025]
[1749895901297,0.79142,2526.1,2526.0,1.83667822]
[1749895901592,0.79145,2526.0,2525.9,1.18437822]
[1749895902093,0.79145,2526.0,2525.9,26.19137822]
[1749895902595,0.79145,2526.0,2525.9,24.999]
[1749895903697,0.79145,2526.0,2525.6,6.92644413]
[1749895903698,1.97864,2526.0,2525.7,1.18437822]
[1749895903891,1.97864,2526.0,2525.7,7.97737822]
[1749895903892,0.79151,2525.8,2525.7,7.97737822]
[1749895904093,0.79151,2525.8,2525.7,32.97137822]
[1749895904395,0.79151,2525.8,2525.7,1.18437822]
[1749895904596,0.79151,2525.8,2525.7,26.16937822]
[1749895905894,0.79151,2525.8,2525.7,27.51727822]
[1749895906896,0.7915,2525.9,2525.8,0.79151]
[1749895907099,0.7915,2525.9,2525.8,3.32327372]
[1749895907299,2.65489,2526.2,2525.8,2.53176372]
[1749895907605,0.6764,2526.2,2525.9,25.75346]
[1749895907803,3.2078,2526.3,2526.0,2.10573]
[1749895907804,0.79143,2526.1,2526.0,2.10573]
[1749895908098,0.79143,2526.1,2526.0,30.66596372]
[1749895908699,0.79143,2526.1,2526.0,31.756]
[1749895908897,0.79145,2526.0,2525.9,1.18386372]
[1749895909099,0.79145,2526.0,2525.9,26.14186372]
[1749895909293,0.79145,2526.0,2525.9,24.958]
[1749895909693,0.79148,2525.9,2525.8,1.18378255]
[1749895909905,0.79148,2525.9,2525.8,24.958]
[1749895912503,0.79151,2525.8,2525.7,4.39158255]
[1749895912803,0.79151,2525.8,2525.7,29.32158255]
[1749895913405,0.79151,2525.8,2525.7,4.39158255]
[1749895913704,0.79151,2525.8,2525.7,28.91734]
[1749895914297,0.79151,2525.8,2525.7,29.30958255]
[1749895914602,0.79151,2525.8,2525.7,28.1258]
[1749895914805,0.79151,2525.8,2525.7,3.2078]
[1749895915001,0.79151,2525.8,2525.7,28.1268]
[1749895915307,0.79151,2525.8,2525.7,28.91834]
[1749895915500,0.79151,2525.8,2525.7,30.10212255]
[1749895915699,0.7915,2525.9,2525.8,0.79148]
[1749895915907,0.79147,2526.0,2525.9,0.79146]
[1749895916105,0.79144,2526.1,2526.0,0.79141]
[1749895916305,0.79137,2526.3,2526.2,0.79135]
[1749895916509,0.79135,2526.4,2526.3,0.79133]
[1749895916809,0.79135,2526.4,2526.3,0.6848]
[1749895919603,0.79136,2526.3,2526.2,26.07278255]
[1749895919803,0.79136,2526.3,2526.2,24.889]
[1749895920004,0.79136,2526.3,2526.2,26.07278255]
[1749895920400,0.79139,2526.2,2526.1,26.72048255]
[1749895920600,0.79139,2526.2,2526.1,1.83048255]
[1749895920911,0.79145,2526.0,2525.9,1.18378255]
[1749895921209,0.79145,2526.0,2525.7,2.51658255]
[1749895921210,0.79151,2525.8,2525.7,2.51658255]
[1749895921516,0.79151,2525.8,2525.7,26.2148]
[1749895921716,0.79151,2525.8,2525.7,0.673]
[1749895923907,0.79151,2525.8,2525.7,1.9297]
[1749895924815,0.79149,2525.9,2525.8,0.79149]
[1749895925006,0.79149,2525.9,2525.8,2.04819]
[1749895925206,0.79149,2525.9,2525.8,1.2567]
[1749895925914,0.79149,2525.9,2525.8,2.04821]
[1749895926110,0.79149,2525.9,2525.8,1.2567]
[1749895927414,0.79149,2525.9,2525.8,2.44048255]
[1749895928116,0.79149,2525.9,2525.8,3.23199255]
[1749895928317,0.79149,2525.9,2525.8,2.44048255]
[1749895929417,0.79149,2525.9,2525.8,5.64828255]
[1749895929914,0.79149,2525.9,2525.8,4.4645]
[1749895930113,0.79149,2525.9,2525.8,5.64936122]
[1749895932017,0.79149,2525.9,2525.8,2.44156122]
[1749895932320,0.79149,2525.9,2525.8,1.18486122]
[1749895932505,0.79151,2525.8,2525.7,5.06566122]
[1749895933014,0.79151,2525.8,2525.7,1.85786122]
[1749895933923,0.79151,2525.8,2525.7,1.997]
[1749895934720,0.79151,2525.8,2525.7,2.78854]
[1749895934921,0.79151,2525.8,2525.7,4.36416423]
[1749895935220,2.7711,2526.0,2525.8,0.79148]
[1749895935221,0.79151,2525.9,2525.8,0.79148]
[1749895935414,0.79151,2525.9,2525.8,2.17248]
[1749895935620,0.79151,2525.9,2525.8,3.35737038]
[1749895936320,0.79151,2525.9,2525.8,2.17248]
[1749895936619,3.56258,2526.0,2525.9,0.79148]
[1749895936822,3.56258,2526.0,2525.9,3.35736898]
[1749895937210,3.56258,2526.0,2525.9,3.74810423]
[1749895938211,2.7711,2526.0,2525.9,28.50610423]
[1749895938412,0.7914,2526.3,2526.2,0.79136]
[1749895938613,0.79135,2526.4,2526.3,0.79131]
[1749895938817,0.00383302,2526.7,2526.3,4.19567344]
[1749895939116,0.79126,2526.6,2526.5,4.392337]
[1749895939319,0.79126,2526.6,2526.5,30.42242998]
[1749895939620,0.00383302,2526.7,2526.5,30.42242998]
[1749895939819,0.00383302,2526.7,2526.6,2.6502797]
[1749895940016,0.79506302,2526.7,2526.6,2.6502797]
[1749895940314,0.79506302,2526.7,2526.6,3.04574267]
[1749895940520,0.79506302,2526.7,2526.6,1.46636]
[1749895941413,0.79506302,2526.7,2526.6,1.85777116]
[1749895941815,0.79506302,2526.7,2526.6,2.64903116]
[1749895944216,1.98196302,2526.7,2526.3,1.82037116]
[1749895944415,0.79133,2526.4,2526.3,8.48237116]
[1749895944617,0.79133,2526.4,2526.3,32.0387]
[1749895944823,0.79133,2526.4,2526.3,25.3767]
[1749895945122,0.79133,2526.4,2526.3,0.6377]
[1749895945316,0.79133,2526.4,2526.3,26.16306]
[1749895945517,0.79133,2526.4,2526.3,27.49396]
[1749895945717,0.79133,2526.4,2526.3,26.7026]
[1749895946117,0.79133,2526.4,2526.3,1.9686]
[1749895946417,0.79142,2526.1,2526.0,1.85540567]
[1749895946723,0.79145,2526.0,2525.9,24.73]
[1749895946927,0.79145,2526.0,2525.8,31.78900567]
[1749895946928,0.79148,2525.9,2525.8,6.662]
[1749895947118,0.79148,2525.9,2525.8,31.393]
[1749895949029,0.79148,2525.9,2525.8,32.18451]
[1749895949728,0.79148,2525.9,2525.8,33.49871]
[1749895950719,0.79148,2525.9,2525.8,32.7072]
[1749895951526,0.79148,2525.9,2525.8,26.0152]
[1749895952420,0.79148,2525.9,2525.8,26.0072]
[1749895952726,0.79148,2525.9,2525.8,24.693]
[1749895952924,0.79154,2525.7,2525.6,4.39575557]
[1749895953127,0.79154,2525.8,2525.6,35.64675557]
[1749895953427,0.7915,2525.9,2525.8,0.79148]
[1749895953627,0.7915,2525.9,2525.8,28.00438567]
[1749895955630,0.79144,2526.1,2526.0,0.79141]
[1749895955833,0.79144,2526.1,2526.0,24.684]
[1749895956126,0.79142,2526.1,2526.0,24.685]
[1749895956526,0.79148,2525.9,2525.8,3.31541567]
[1749895956730,0.79148,2525.9,2525.8,34.55641567]
[1749895956926,0.79148,2525.9,2525.8,33.76490567]
[1749895957126,0.79148,2525.9,2525.8,34.55641567]
[1749895957722,0.79147,2526.0,2525.9,0.79144]
[1749895957922,0.79147,2526.0,2525.9,2.13164]
[1749895960023,0.79145,2526.1,2526.0,0.7914]
[1749895960224,0.79145,2526.1,2526.0,27.28820567]
[1749895960732,0.79145,2526.1,2526.0,27.28882671]
[1749895960930,0.79145,2526.1,2526.0,27.3672]
[1749895961737,0.79145,2526.1,2526.0,28.94658267]
[1749895962437,0.79145,2526.1,2526.0,27.3672]
[1749895962829,0.79145,2526.1,2526.0,28.54988445]
[1749895963333,0.79145,2526.1,2526.0,27.3672]
[1749895965639,1.97837,2526.4,2526.0,27.3672]
[1749895965640,0.79141,2526.3,2526.2,0.79136]
[1749895965839,0.79141,2526.3,2526.2,25.43736]
[1749895966436,0.79141,2526.3,2526.2,24.646]
[1749895970142,0.79141,2526.3,2526.2,25.43739]
[1749895970440,0.79141,2526.3,2526.2,26.77459]
[1749895971236,1.97823,2526.6,2526.3,0.79132]
[1749895971237,0.79135,2526.4,2526.3,0.79132]
[1749895971443,0.79135,2526.4,2526.3,2.12852]
[1749895971741,0.79135,2526.4,2526.3,3.31149105]
[1749895972442,0.79132,2526.5,2526.4,0.79129]
[1749895972641,0.79132,2526.5,2526.4,2.11109]
[1749895973235,3.21163302,2526.7,2526.4,25.9188]
[1749895973442,0.79126,2526.6,2526.5,3.99906]
[1749895973744,0.79126,2526.6,2526.5,37.51220719]
[1749895974242,0.79126,2526.6,2526.5,38.30349719]
[1749895974746,0.79126,2526.6,2526.5,37.11909]
[1749895975641,0.00383302,2526.7,2526.6,0.79126]
[1749895975843,0.00383302,2526.7,2526.6,3.69574267]
[1749895976744,0.00383302,2526.7,2526.6,2.11636]
[1749895976947,0.79113,2527.1,2527.0,0.7911]
[1749895977149,0.79113,2527.1,2527.0,25.3921]
[1749895977343,0.79113,2527.1,2527.0,26.57559252]
[1749895977551,0.79113,2527.1,2527.0,27.78459252]
[1749895978346,0.79113,2527.1,2527.0,26.6011]
[1749895980344,0.79114,2527.0,2526.9,1.18349252]
[1749895980539,0.79117,2526.9,2526.8,1.18943017]
[1749895980741,0.79117,2526.9,2526.8,0.00593765]
[1749895980950,0.79117,2526.9,2526.8,24.58693765]
[1749895981447,0.79117,2526.9,2526.8,0.00593765]
[1749895982552,2.15257,2526.9,2526.8,0.00593765]
[1749895984451,0.79117,2526.9,2526.8,0.00593765]
[1749895985245,0.79115,2527.0,2526.8,0.00593765]
[1749895985561,0.79117,2526.9,2526.8,26.69860765]
[1749895985746,2.7698,2527.2,2526.8,25.90743765]
[1749895985945,0.79113,2527.1,2527.0,0.79114]
[1749895986146,0.79113,2527.1,2527.0,2.11464]
[1749895986353,0.79113,2527.1,2527.0,1.3235]
[1749895988450,0.79113,2527.1,2527.0,2.11464]
[1749895989558,0.79113,2527.1,2527.0,1.3235]
[1749895989750,0.79113,2527.1,2527.0,2.11464]
[1749895990145,0.79113,2527.1,2527.0,1.3235]
[1749895990550,0.79113,2527.1,2527.0,2.11464]
[1749895991663,0.79113,2527.1,2527.0,1.3235]
[1749895993761,0.79114,2527.0,2526.9,33.00799728]
[1749895994451,0.79114,2527.0,2526.9,1.18182728]
[1749895994652,4.74754,2527.2,2526.8,8.46495493]
[1749895994653,0.79117,2526.9,2526.8,8.46495493]
[1749895994858,0.79117,2526.9,2526.8,32.98495493]
[1749895995256,2.7698,2527.2,2526.9,0.79113]
[1749895995257,0.79116,2527.0,2526.9,0.79113]
[1749895995456,0.79116,2527.0,2526.9,3.32808032]
[1749895996861,0.79116,2527.0,2526.9,2.14603]
[1749895997463,2.7698,2527.2,2526.9,2.14603]
[1749895997464,0.79112,2527.1,2527.0,0.79111]
[1749895997663,0.79112,2527.1,2527.0,2.11741]
[1749896000663,0.79112,2527.1,2527.0,5.32521]
[1749896001259,3.5609,2527.2,2527.1,0.79111]
[1749896001461,3.5609,2527.2,2527.1,2.16141]
[1749896003060,3.5609,2527.2,2527.1,2.79291]
[1749896003465,3.5609,2527.2,2527.1,3.97496032]
[1749896005963,2.7698,2527.2,2527.1,28.42596032]
[1749896006172,2.7698,2527.2,2527.1,28.82190002]
[1749896006469,3.56088,2527.2,2527.1,28.82190002]
[1749896006669,3.56088,2527.2,2527.1,27.24391]
[1749896007780,2.7698,2527.2,2527.1,27.24391]
[1749896010073,2.7698,2527.2,2527.1,29.60759532]
[1749896012367,3.56088,2527.2,2527.1,29.57659532]
[1749896012573,0.6713,2527.6,2527.3,1.9776]
[1749896012773,0.79101,2527.5,2527.4,26.39413435]
[1749896012968,0.79101,2527.5,2527.4,27.70993435]
[1749896013169,0.79098,2527.6,2527.5,0.79095]
[1749896014476,0.79098,2527.6,2527.5,1.97510435]
[1749896015475,3.99874,2527.7,2527.6,0.79095]
[1749896015776,3.99874,2527.7,2527.6,27.71764478]
[1749896015966,3.99874,2527.7,2527.6,26.53275]
[1749896016169,3.2078,2527.7,2527.6,26.53275]
[1749896017275,3.99863,2528.1,2528.0,0.7908]
[1749896017573,3.99863,2528.1,2527.9,26.39033726]
[1749896017574,0.79083,2528.0,2527.9,26.39033726]
[1749896018079,0.79083,2528.0,2527.9,25.59950726]
[1749896018276,0.79083,2528.0,2527.9,24.415]
[1749896018871,0.79083,2528.0,2527.9,25.20586]
[1749896019081,3.99862,2528.1,2528.0,0.79083]
[1749896019279,3.99862,2528.1,2528.0,25.20383]
[1749896020485,3.99862,2528.1,2528.0,26.52313]
[1749896021876,0.79082,2528.1,2528.0,26.52313]
[1749896022183,3.2078,2528.5,2528.2,0.79074]
[1749896022479,0.79076,2528.3,2528.2,24.412]
[1749896022678,0.79076,2528.3,2528.2,25.20277]
[1749896022881,0.79076,2528.3,2528.2,24.412]
[1749896023279,1.97654,2528.7,2528.3,0.79071]
[1749896023480,1.97654,2528.7,2528.2,27.6198]
[1749896023481,0.7907,2528.5,2528.4,0.79068]
[1749896024184,0.7907,2528.5,2528.4,2.03998]
[1749896024480,0.79067,2528.5,2528.4,2.03999]
[1749896024985,0.79067,2528.5,2528.4,1.2493]
[1749896025477,0.79067,2528.5,2528.4,30.804]
[1749896026380,0.7907,2528.4,2528.3,0.6776]
[1749896026874,0.7907,2528.4,2528.3,31.4816]
[1749896027880,0.7907,2528.4,2528.3,32.27233]
[1749896028081,0.7907,2528.4,2528.3,32.27033]
[1749896028281,0.7907,2528.4,2528.3,31.4796]
[1749896029485,0.7907,2528.4,2528.3,1.46833]
[1749896029686,0.7907,2528.4,2528.3,32.27033]
[1749896030180,0.7907,2528.4,2528.3,0.6776]
[1749896030483,0.7907,2528.4,2528.3,31.59173]
[1749896030881,0.7907,2528.4,2528.3,32.94723]
[1749896033286,0.7907,2528.4,2528.3,32.1565]
[1749896034285,0.7907,2528.4,2528.3,32.94723]
[1749896034888,0.7907,2528.4,2528.3,30.798]
[1749896035092,1.466,2528.4,2528.3,30.798]
[1749896036990,0.79076,2528.2,2528.1,0.79670765]
[1749896037189,0.79076,2528.2,2528.1,31.59470765]
[1749896039484,0.79076,2528.2,2528.1,32.77921491]
[1749896039684,0.79076,2528.2,2528.1,7.58344491]
[1749896039883,0.79076,2528.2,2528.1,31.98844491]
[1749896040094,0.79076,2528.2,2528.1,0.00593765]
[1749896046293,0.85885268,2528.2,2528.1,0.00593765]
[1749896055091,0.79086,2527.9,2527.8,0.6796]
[1749896056206,0.79086,2527.9,2527.8,1.941]
[1749896057498,0.79086,2527.9,2527.8,3.12488687]
[1749896057695,0.79086,2527.9,2527.8,2.73189]
[1749896057901,0.79086,2527.9,2527.8,3.91577687]
[1749896060105,0.79086,2527.9,2527.8,2.73189]
[1749896060607,0.79086,2528.0,2527.9,0.79084]
[1749896060808,0.79086,2528.0,2527.9,3.29799465]
[1749896061306,0.79086,2528.0,2527.9,2.50715465]
[1749896061495,0.79675765,2528.1,2527.9,2.50715465]
[1749896061705,0.79675765,2528.1,2528.0,6.50578465]
[1749896062000,0.00593765,2528.1,2528.0,5.32193]
[1749896062201,0.00593765,2528.1,2528.0,6.90127302]
[1749896062508,0.79673765,2528.1,2528.0,6.90127302]
[1749896062694,0.00593765,2528.1,2528.0,6.90127302]
[1749896063500,0.00593765,2528.1,2528.0,37.69527302]
[1749896065704,0.00593765,2528.1,2528.0,36.11593]
[1749896066907,0.00593765,2528.1,2528.0,38.47961532]
[1749896067111,0.00593765,2528.1,2528.0,36.11593]
[1749896068604,0.00593765,2528.1,2528.0,76.91593]
[1749896070114,0.79073,2528.4,2528.3,0.79073]
[1749896070308,0.7907,2528.5,2528.4,0.79066]
[1749896070508,0.7907,2528.5,2528.4,4.00348874]
[1749896071114,0.79067,2528.6,2528.5,0.79063]
[1749896071308,1.97644,2528.9,2528.5,26.56633]
[1749896071509,0.79064,2528.6,2528.5,28.14506175]
[1749896072013,0.79064,2528.6,2528.5,25.7757]
[1749896072209,0.79067,2528.5,2528.4,1.57869175]
[1749896072416,0.79067,2528.5,2528.2,1.18365192]
[1749896072417,0.6867,2528.5,2528.2,1.18365192]
[1749896072712,0.79077,2528.2,2528.1,25.58265192]
[1749896073116,0.79077,2528.2,2528.1,26.37345192]
[1749896073310,0.79075,2528.3,2528.2,0.79073]
[1749896073506,0.79075,2528.3,2528.2,3.32168192]
[1749896073813,2.66343,2528.5,2528.2,3.32168192]
[1749896073814,0.79073,2528.4,2528.3,0.79071]
[1749896074116,0.79073,2528.3,2528.2,3.32169192]
[1749896077211,0.79073,2528.3,2528.2,2.53095192]
[1749896077613,0.79073,2528.3,2528.2,3.32172192]
[1749896079819,0.79073,2528.3,2528.2,1.18365192]
[1749896080019,0.79073,2528.3,2528.2,1.97442192]
[1749896080525,0.79073,2528.3,2528.2,3.33382192]
[1749896081417,0.79073,2528.3,2528.2,1.18365192]
[1749896081613,0.79077,2528.2,2528.1,1.18365192]
[1749896081917,0.7908,2528.1,2528.0,27.6028]
[1749896082119,1.4693,2528.1,2528.0,27.6028]
[1749896082423,1.4693,2528.1,2528.0,28.78658179]
[1749896082821,1.4693,2528.1,2528.0,29.57741179]
[1749896083025,1.4693,2528.1,2528.0,28.39363]
[1749896083623,1.4693,2528.1,2528.0,29.97232175]
[1749896084121,0.7908,2528.2,2528.1,0.79077]
[1749896084612,0.7908,2528.2,2528.1,1.97458804]
[1749896084814,0.7908,2528.2,2528.1,0.79077]
[1749896085625,0.7908,2528.2,2528.1,3.67926175]
[1749896086720,1.44214,2528.3,2528.2,0.79077]
[1749896086923,0.79074,2528.3,2528.2,26.3689269]
[1749896087422,0.79074,2528.3,2528.2,25.5781569]
[1749896088223,0.79074,2528.3,2528.2,24.394]
[1749896088422,0.79074,2528.3,2528.2,25.5781569]
[1749896088624,0.79074,2528.3,2528.2,26.3689269]
[1749896089625,0.79074,2528.3,2528.2,25.5781569]
[1749896089835,2.62809,2528.5,2528.1,1.1841569]
[1749896090018,0.79077,2528.2,2528.1,24.394]
[1749896090732,0.85886268,2528.2,2528.1,24.394]
[1749896092131,0.7908,2528.1,2528.0,4.3919569]
[1749896092326,1.435,2528.1,2528.0,28.7839569]
[1749896092627,1.435,2528.1,2528.0,27.5998]
[1749896092827,1.435,2528.1,2528.0,3.2078]
[1749896096629,1.435,2528.1,2528.0,4.3919569]
[1749896097333,1.435,2528.1,2528.0,1.1841569]
[1749896100436,0.79089,2527.8,2527.7,1.1841569]
[1749896100730,0.79092,2527.7,2527.6,0.00593765]
[1749896100935,0.79108,2527.2,2527.1,1.1841569]
[1749896101427,1.97772,2527.2,2526.8,4.3919569]
[1749896101637,0.79117,2526.9,2526.8,4.3919569]
[1749896102232,0.79117,2526.9,2526.8,3.2078]
[1749896103331,0.79117,2526.9,2526.8,4.5897]
[1749896103740,0.79123,2526.7,2526.6,0.00593765]
[1749896104929,0.79116,2527.0,2526.6,1.38783765]
[1749896105129,0.79117,2527.0,2526.8,3.99898]
[1749896105333,0.79114,2527.0,2526.9,2.0465]
[1749896105531,0.79114,2527.0,2526.9,26.4395]
[1749896107623,0.00593765,2527.1,2527.0,0.79114]
[1749896107827,0.00593765,2527.1,2527.0,2.08974]
[1749896108631,0.79704765,2527.1,2527.0,2.08974]
[1749896108935,0.79704765,2527.1,2527.0,1.2986]
[1749896109139,0.79117,2526.9,2526.8,28.2399]
[1749896109339,0.79117,2526.9,2526.8,3.8429]
[1749896109541,0.79117,2526.9,2526.8,3.2078]
[1749896117844,0.79123,2526.7,2526.6,2.15239765]
[1749896118043,0.79123,2526.7,2526.6,4.00499765]
[1749896118639,0.00593765,2527.1,2526.7,1.97809]
[1749896118844,0.00593765,2527.1,2527.0,3.99894]
[1749896119139,0.79704765,2527.1,2527.0,3.99894]
[1749896119340,0.79704765,2527.1,2527.0,3.2078]
[1749896119535,0.79704765,2527.1,2527.0,33.9898]
[1749896119844,0.79704765,2527.1,2527.0,34.6369]
[1749896120637,0.79704765,2527.1,2527.0,35.42804]
[1749896120839,0.00593765,2527.1,2527.0,35.42804]
[1749896121238,0.79704765,2527.1,2527.0,35.42804]
[1749896123542,0.00593765,2527.1,2527.0,35.42504]
[1749896124341,0.00593765,2527.1,2527.0,36.6091969]
[1749896124540,0.79102,2527.5,2527.4,0.79098]
[1749896124847,0.79102,2527.5,2527.4,25.18598]
[1749896125043,0.79102,2527.5,2527.4,31.56898]
[1749896125943,0.79102,2527.5,2527.4,30.778]
[1749896126740,0.79102,2527.5,2527.4,31.56902]
[1749896127351,0.79102,2527.5,2527.4,30.778]
[1749896127842,0.79102,2527.5,2527.4,31.56902]
[1749896128542,0.79102,2527.5,2527.4,30.778]
[1749896128742,0.79102,2527.5,2527.4,31.56902]
[1749896129049,0.79102,2527.5,2527.4,30.778]
[1749896129448,0.79102,2527.5,2527.4,31.56902]
[1749896130044,0.79097,2527.6,2527.5,0.79094]
[1749896130348,0.79094,2527.7,2527.6,0.79092]
[1749896130548,0.79094,2527.7,2527.6,26.36582024]
[1749896132346,0.79094,2527.7,2527.6,25.18292]
[1749896133554,3.2078,2527.9,2527.6,25.677]
[1749896133755,3.99868,2527.9,2527.8,0.79089]
[1749896133950,3.99868,2527.9,2527.8,24.39]
[1749896134354,3.99868,2527.9,2527.8,25.675]
[1749896136155,3.99868,2527.9,2527.8,26.46589]
[1749896136355,3.99868,2527.9,2527.8,25.675]
[1749896136552,5.18502,2527.9,2527.5,1.84860024]
[1749896136757,0.79098,2527.5,2527.4,8.20030024]
[1749896136955,0.79098,2527.5,2527.4,6.379]
[1749896138858,0.79102,2527.4,2527.3,29.56974024]
[1749896139061,0.79102,2527.4,2527.3,5.18174024]
[1749896139253,0.79102,2527.4,2527.3,29.56974024]
[1749896140656,0.79102,2527.4,2527.3,30.91254024]
[1749896141159,0.79101,2527.5,2527.4,0.79098]
[1749896141455,0.79098,2527.6,2527.5,0.79095]
[1749896141655,0.79098,2527.6,2527.5,25.17795]
[1749896141855,0.79098,2527.6,2527.5,27.16155]
[1749896142054,0.79098,2527.6,2527.5,26.3706]
[1749896142762,0.79102,2527.4,2527.3,4.38988298]
[1749896143164,0.79102,2527.4,2527.3,3.2078]
[1749896143657,0.79102,2527.4,2527.3,4.38988298]
[1749896143853,0.79102,2527.4,2527.3,3.2078]
[1749896144052,1.97758,2527.4,2527.1,25.56964153]
[1749896144251,1.97758,2527.4,2527.0,11.16549175]
[1749896144252,0.79111,2527.1,2527.0,4.39044153]
[1749896144457,0.79111,2527.1,2527.0,28.77773241]
[1749896145063,0.79111,2527.1,2527.0,27.5948]
[1749896145465,0.79111,2527.1,2527.0,28.77773241]
[1749896145765,0.79111,2527.1,2527.0,28.77673241]
[1749896147065,0.79111,2527.1,2527.0,29.56787241]
[1749896147265,0.79111,2527.1,2527.0,28.77673241]
[1749896147568,0.79111,2527.1,2527.0,29.56787241]
[1749896148465,0.79111,2527.1,2527.0,28.38494]
[1749896148669,0.79111,2527.1,2527.0,27.5938]
[1749896149564,0.79111,2527.1,2527.0,28.38494]
[1749896149873,0.79111,2527.1,2527.0,28.7788207]
[1749896150070,0.79111,2527.1,2527.0,27.5948]
[1749896150370,0.79111,2527.1,2527.0,29.56993108]
[1749896150571,0.79111,2527.1,2527.0,27.5948]
[1749896150772,0.85920268,2527.1,2527.0,4.39179104]
[1749896151068,0.85920268,2527.1,2527.0,28.38494]
[1749896151266,0.85920268,2527.1,2527.0,31.32343175]
[1749896153570,0.06809268,2527.1,2527.0,31.32343175]
[1749896153770,0.85920268,2527.1,2527.0,31.32343175]
[1749896153971,0.85920268,2527.1,2527.0,29.74474]
[1749896154473,0.06809268,2527.1,2527.0,29.74474]
[1749896154867,0.06809268,2527.1,2527.0,32.11277763]
[1749896155263,0.85920268,2527.1,2527.0,32.11277763]
[1749896155871,0.06809268,2527.1,2527.0,32.11277763]
[1749896156071,0.85920268,2527.1,2527.0,32.11277763]
[1749896156472,0.85920268,2527.1,2527.0,31.99653694]
[1749896159879,0.85920268,2527.1,2527.0,7.61053694]
[1749896160177,0.85920268,2527.1,2527.0,38.37353694]
[1749896160878,0.85920268,2527.1,2527.0,36.79504]
[1749896161079,0.85920268,2527.1,2527.0,38.37341848]
[1749896161380,0.85920268,2527.1,2527.0,36.79504]
[1749896161572,0.85920268,2527.1,2527.0,37.58238469]
[1749896161773,0.85920268,2527.1,2527.0,6.81938469]
[1749896161970,0.85920268,2527.1,2527.0,37.58238469]
[1749896162170,0.85920268,2527.1,2527.0,36.0039]
[1749896162573,0.85920268,2527.1,2527.0,36.79504]
[1749896162779,0.85920268,2527.1,2527.0,37.58238469]
[1749896163674,0.85920268,2527.1,2527.0,38.37352469]
[1749896165180,0.85920268,2527.1,2527.0,7.61052469]
[1749896165480,0.85920268,2527.1,2527.0,37.57638469]
[1749896166384,0.85920268,2527.1,2527.0,38.36752469]
[1749896167984,0.85920268,2527.1,2527.0,29.16828469]
[1749896168183,0.85920268,2527.1,2527.0,29.95942469]
[1749896169082,0.85920268,2527.1,2527.0,31.29912469]
[1749896169584,0.06809268,2527.1,2527.0,31.29912469]
[1749896169785,0.06809268,2527.1,2527.0,32.08867763]